fUST/lending_fUST_20250908
["ID","MTS","AMOUNT","RATE_DAILY","PERIOD"]
[384296141,1757324137609,-500.0,0.0001347,2]
[384296142,1757324137640,-500.0,0.0001347,2]
[384296143,1757324137673,-500.0,0.0001347,2]
[384296144,1757324137705,-500.0,0.0001347,2]
[384296145,1757324137736,-500.0,0.0001347,2]
[384296146,1757324137767,-500.52993702,0.0001347,2]
[384296147,1757324137798,-500.0,0.0001347,2]
[384296148,1757324137828,-500.0,0.0001347,2]
[384296149,1757324137857,-500.0,0.0001347,2]
[384296150,1757324137887,-8.60557124,0.0001347,2]
[384296151,1757324138142,-491.39442876,0.0001347,2]
[384296152,1757324197560,-300.0,0.00013335,2]
[384296153,1757324197595,-9400.01,0.00013336,2]
[384296154,1757324202552,-10000.01,0.00013336,2]
[384296156,1757324267608,-300.0,0.00013335,2]
[384296157,1757324267645,-9400.01,0.00013336,2]
[384296159,1757324272571,-4650.17527935,0.00013336,2]
[384296160,1757324272598,-110.99210687,0.00013369,2]
[384296161,1757324272631,-477.67522756,0.00013369,2]
[384296165,1757324392596,-300.0,0.00013333,2]
[384296166,1757324392624,-300.0,0.00013469,2]
[384296167,1757324392651,-235.74371607,0.0001347,2]
[384296168,1757324392679,-500.0,0.0001347,2]
[384296169,1757324392707,-500.0,0.0001347,2]
[384296170,1757324392734,-345.8273245,0.0001347,2]
[384296171,1757324392761,-477.00008235,0.0001347,2]
[384296172,1757324392788,-417.94576546,0.0001347,2]
[384296173,1757324392817,-500.0,0.0001347,2]
[384296174,1757324392847,-500.0,0.0001347,2]
[384296175,1757324392874,-313.83970908,0.0001347,2]
[384296176,1757324392901,-500.0,0.0001347,2]
[384296177,1757324393075,-219.29680508,0.0001347,2]
[384296178,1757324397609,-280.70319492,0.0001347,2]
[384296179,1757324397641,-500.0,0.0001347,2]
[384296180,1757324397672,-500.0,0.0001347,2]
[384296181,1757324397701,-500.0,0.0001347,2]
[384296182,1757324397731,-500.0,0.0001347,2]
[384296183,1757324397761,-207.01051207,0.0001347,2]
[384296184,1757324397791,-321.70803965,0.0001347,2]
[384296185,1757324397821,-500.0,0.0001347,2]
[384296186,1757324397853,-500.0,0.0001347,2]
[384296187,1757324397883,-500.0,0.0001347,2]
[384296188,1757324397910,-500.0,0.0001347,2]
[384296189,1757324398093,-381.16650672,0.0001347,2]
[384296190,1757324447596,-300.0,0.00013334,2]
[384296191,1757324447630,-9400.01,0.00013381,2]
[384296192,1757324452647,-10000.01,0.00013381,2]
[384296193,1757324474886,171.31108044,0.00013147,2]
[384296229,1757324644972,1200.0,0.00013114,2]
[384296230,1757324669157,1500.0,0.00013114,2]
[384296231,1757324692123,1500.0,0.00013114,2]
[384296233,1757324716946,1200.0,0.00013114,2]
[384296234,1757324740593,1200.0,0.00013114,2]
[384296243,1757324955164,-750.73586684,0.00013247,2]
[384296244,1757324955183,-260.92,0.00013247,2]
[384296245,1757324955203,-673.19295337,0.0001337,2]
[384296246,1757324955224,-1200.0,0.0001338,2]
[384296247,1757324955245,-300.0,0.0001338,2]
[384296248,1757324955267,-1982.12139309,0.00013381,2]
[384296268,1757325032783,-438.13000001,0.00013381,2]
[384296274,1757325032836,-9293.0061229,0.00013381,2]
[384296276,1757325032846,-300.0,0.00013469,2]
[384296278,1757325032855,-188.59497286,0.0001347,2]
[384296280,1757325032865,-118.83349328,0.0001347,2]
[384296282,1757325032874,-500.0,0.0001347,2]
[384296284,1757325032884,-500.0,0.0001347,2]
[384296285,1757325032894,-500.0,0.0001347,2]
[384296286,1757325032903,-500.0,0.0001347,2]
[384296287,1757325032913,-500.0,0.0001347,2]
[384296288,1757325032922,-500.0,0.0001347,2]
[384296290,1757325032932,-500.0,0.0001347,2]
[384296292,1757325032941,-500.0,0.0001347,2]
[384296294,1757325032951,-500.0,0.0001347,2]
[384296296,1757325032960,-500.0,0.0001347,2]
[384296298,1757325032970,-500.0,0.0001347,2]
[384296301,1757325032979,-500.0,0.0001347,2]
[384296304,1757325032989,-500.0,0.0001347,2]
[384296306,1757325032999,-500.0,0.0001347,2]
[384296308,1757325033009,-500.0,0.0001347,2]
[384296310,1757325033018,-500.0,0.0001347,2]
[384296312,1757325033028,-500.0,0.0001347,2]
[384296314,1757325033037,-500.0,0.0001347,2]
[384296315,1757325033047,-500.0,0.0001347,2]
[384296316,1757325033056,-550.79165585,0.0001347,2]
[384296317,1757325033066,-500.0,0.0001347,2]
[384296318,1757325033076,-500.0,0.0001347,2]
[384296319,1757325033086,-500.0,0.0001347,2]
[384296320,1757325033096,-500.0,0.0001347,2]
[384296321,1757325033108,-500.0,0.0001347,2]
[384296322,1757325033118,-500.0,0.0001347,2]
[384296323,1757325033128,-500.0,0.0001347,2]
[384296324,1757325033138,-144.55908603,0.0001347,2]
[384296325,1757325033150,-355.44091397,0.0001347,2]
[384296326,1757325033161,-500.0,0.0001347,2]
[384296327,1757325033171,-500.0,0.0001347,2]
[384296328,1757325033180,-27.11212229,0.0001347,2]
[384296329,1757325033193,-472.88787771,0.0001347,2]
[384296330,1757325033203,-500.0,0.0001347,2]
[384296331,1757325033213,-50.30259971,0.0001347,2]
[384296361,1757325038604,-449.69740029,0.0001347,2]
[384296364,1757325038616,-500.0,0.0001347,2]
[384296366,1757325038627,-500.0,0.0001347,2]
[384296368,1757325038638,-500.0,0.0001347,2]
[384296370,1757325038650,-500.0,0.0001347,2]
[384296373,1757325038661,-500.0,0.0001347,2]
[384296375,1757325038676,-500.0,0.0001347,2]
[384296377,1757325038688,-500.0,0.0001347,2]
[384296379,1757325038700,-500.0,0.0001347,2]
[384296381,1757325038713,-500.0,0.0001347,2]
[384296384,1757325038725,-500.0,0.0001347,2]
[384296387,1757325038740,-295.38672218,0.0001347,2]
[384296390,1757325038754,-500.0,0.0001347,2]
[384296392,1757325038766,-500.0,0.0001347,2]
[384296394,1757325038778,-500.0,0.0001347,2]
[384296397,1757325038789,-500.0,0.0001347,2]
[384296399,1757325038800,-500.0,0.0001347,2]
[384296401,1757325038811,-500.0,0.0001347,2]
[384296403,1757325038823,-500.0,0.0001347,2]
[384296406,1757325038836,-500.0,0.0001347,2]
[384296408,1757325038847,-500.0,0.0001347,2]
[384296410,1757325038858,-500.0,0.0001347,2]
[384296412,1757325038870,-500.0,0.0001347,2]
[384296414,1757325038881,-500.0,0.0001347,2]
[384296417,1757325038893,-500.0,0.0001347,2]
[384296419,1757325038905,-500.0,0.0001347,2]
[384296421,1757325038917,-500.0,0.0001347,2]
[384296423,1757325038928,-500.0,0.0001347,2]
[384296425,1757325038940,-500.0,0.0001347,2]
[384296428,1757325038952,-500.0,0.0001347,2]
[384296430,1757325038965,-500.0,0.0001347,2]
[384296432,1757325038976,-500.0,0.0001347,2]
[384296434,1757325038987,-500.0,0.0001347,2]
[384296436,1757325038998,-500.0,0.0001347,2]
[384296439,1757325039010,-500.0,0.0001347,2]
[384296441,1757325039021,-500.0,0.0001347,2]
[384296443,1757325039033,-352.78848358,0.0001347,2]
[384296445,1757325039045,-343303.11318093,0.00013471,2]
[384296447,1757325039057,-17668.69201938,0.00013473,2]
[384296449,1757325039068,-459.06158528,0.00013573,2]
[384296452,1757325039080,-162.45900971,0.00013673,2]
[384296454,1757325039092,-500.0,0.00013673,2]
[384296456,1757325039103,-500.0,0.00013673,2]
[384296458,1757325039114,-500.0,0.00013673,2]
[384296460,1757325039124,-160.02831354,0.00013673,2]
[384296463,1757325039135,-454.32360974,0.00013673,2]
[384296465,1757325039147,-480.0,0.00013698,2]
[384296467,1757325039159,-480.0,0.00013698,2]
[384296469,1757325039170,-480.0,0.00013698,2]
[384296471,1757325039181,-480.64569854,0.00013698,2]
[384296474,1757325039193,-480.0,0.00013698,2]
[384296476,1757325039205,-480.0,0.00013698,2]
[384296478,1757325039217,-480.99065468,0.00013698,2]
[384296480,1757325039228,-480.0,0.00013698,2]
[384296483,1757325039239,-480.0,0.00013698,2]
[384296485,1757325039250,-480.0,0.00013698,2]
[384296487,1757325039262,-480.0,0.00013698,2]
[384296489,1757325039272,-480.0,0.00013698,2]
[384296491,1757325039281,-480.0,0.00013698,2]
[384296493,1757325039290,-481.23899459,0.00013698,2]
[384296495,1757325039300,-480.0,0.00013698,2]
[384296497,1757325039310,-481.96453582,0.00013698,2]
[384296499,1757325039319,-480.0,0.00013698,2]
[384296517,1757325039491,-480.0,0.00013698,2]
[384296520,1757325039511,-480.0,0.00013698,2]
[384296522,1757325039522,-480.0,0.00013698,2]
[384296524,1757325039531,-482.2787016,0.00013698,2]
[384296526,1757325039542,-488.51780875,0.00013698,2]
[384296528,1757325039551,-480.0,0.00013698,2]
[384296530,1757325039560,-480.0,0.00013698,2]
[384296532,1757325039569,-480.0,0.00013698,2]
[384296534,1757325039578,-484.59405239,0.00013698,2]
[384296537,1757325039597,-382.00726471,0.00013698,2]
[384296539,1757325039608,-480.0,0.00013698,2]
[384296542,1757325039618,-463.33465703,0.00013698,2]
[384296544,1757325039628,-469.24731808,0.00013698,2]
[384296546,1757325039639,-480.0,0.00013698,2]
[384296548,1757325039649,-480.0,0.00013698,2]
[384296549,1757325039658,-480.0,0.00013698,2]
[384296551,1757325039669,-480.0,0.00013698,2]
[384296553,1757325039681,-480.0,0.00013698,2]
[384296555,1757325039691,-480.0,0.00013698,2]
[384296556,1757325039701,-480.0,0.00013698,2]
[384296557,1757325039710,-480.0,0.00013698,2]
[384296559,1757325039720,-418.43007453,0.00013698,2]
[384296561,1757325039730,-480.0,0.00013698,2]
[384296563,1757325039740,-480.0,0.00013698,2]
[384296565,1757325039750,-484.16146087,0.00013698,2]
[384296567,1757325039760,-480.0,0.00013698,2]
[384296569,1757325039770,-480.0,0.00013698,2]
[384296571,1757325039780,-480.0,0.00013698,2]
[384296574,1757325039790,-534.54680004,0.00013698,2]
[384296576,1757325039800,-480.0,0.00013698,2]
[384296578,1757325039809,-480.0,0.00013698,2]
[384296580,1757325039820,-480.0,0.00013698,2]
[384296582,1757325039829,-480.0,0.00013698,2]
[384296584,1757325039839,-217.06210863,0.00013698,2]
[384296586,1757325039850,-480.0,0.00013698,2]
[384296588,1757325039861,-480.0,0.00013698,2]
[384296590,1757325039871,-480.0,0.00013698,2]
[384296592,1757325039881,-483.54077908,0.00013698,2]
[384296594,1757325039891,-480.0,0.00013698,2]
[384296596,1757325039901,-480.0,0.00013698,2]
[384296598,1757325039911,-480.0,0.00013698,2]
[384296600,1757325039921,-480.0,0.00013698,2]
[384296602,1757325039931,-480.0,0.00013698,2]
[384296604,1757325039941,-480.0,0.00013698,2]
[384296606,1757325039950,-480.0,0.00013698,2]
[384296608,1757325039961,-480.0,0.00013698,2]
[384296610,1757325039970,-480.0,0.00013698,2]
[384296612,1757325039980,-482.09294492,0.00013698,2]
[384296614,1757325039990,-480.0,0.00013698,2]
[384296616,1757325040000,-483.27021897,0.00013698,2]
[384296618,1757325040010,-467.11383636,0.00013698,2]
[384296621,1757325040020,-480.0,0.00013698,2]
[384296623,1757325040030,-480.0,0.00013698,2]
[384296625,1757325040040,-367.94548789,0.00013698,2]
[384296627,1757325040051,-483.09087083,0.00013698,2]
[384296629,1757325040061,-481.49490776,0.00013698,2]
[384296631,1757325040071,-480.97140288,0.00013698,2]
[384296633,1757325040081,-480.39218494,0.00013698,2]
[384296635,1757325040092,-514.64751967,0.00013698,2]
[384296637,1757325040103,-480.85613285,0.00013698,2]
[384296639,1757325040113,-480.0,0.00013698,2]
[384296641,1757325040124,-480.0,0.00013698,2]
[384296643,1757325040135,-480.0,0.00013698,2]
[384296645,1757325040145,-480.0,0.00013698,2]
[384296647,1757325040155,-482.34989346,0.00013698,2]
[384296649,1757325040165,-483.40144632,0.00013698,2]
[384296651,1757325040175,-481.38659292,0.00013698,2]
[384296653,1757325040184,-483.37839121,0.00013698,2]
[384296655,1757325040194,-483.07367198,0.00013698,2]
[384296657,1757325040204,-482.45515753,0.00013698,2]
[384296659,1757325040213,-480.0,0.00013698,2]
[384296661,1757325040223,-480.0,0.00013698,2]
[384296663,1757325040234,-482.46591098,0.00013698,2]
[384296666,1757325040244,-481.22001455,0.00013698,2]
[384296670,1757325040255,-514.58191426,0.00013698,2]
[384296673,1757325040265,-480.0,0.00013698,2]
[384296676,1757325040274,-480.0,0.00013698,2]
[384296679,1757325040284,-480.0,0.00013698,2]
[384296681,1757325040294,-480.81656269,0.00013698,2]
[384296683,1757325040304,-480.0,0.00013698,2]
[384296685,1757325040313,-481.03751988,0.00013698,2]
[384296687,1757325040323,-480.0,0.00013698,2]
[384296689,1757325040334,-480.0,0.00013698,2]
[384296691,1757325040343,-480.0,0.00013698,2]
[384296693,1757325040353,-482.33445421,0.00013698,2]
[384296695,1757325040363,-480.0,0.00013698,2]
[384296697,1757325040375,-480.0,0.00013698,2]
[384296698,1757325040385,-484.68819021,0.00013698,2]
[384296699,1757325040396,-480.0,0.00013698,2]
[384296700,1757325040405,-480.0,0.00013698,2]
[384296701,1757325040415,-481.57633095,0.00013698,2]
[384296702,1757325040424,-480.0,0.00013698,2]
[384296703,1757325040434,-498.31768226,0.00013698,2]
[384296704,1757325040444,-515.94327695,0.00013698,2]
[384296705,1757325040455,-480.0,0.00013698,2]
[384296706,1757325040466,-480.0,0.00013698,2]
[384296707,1757325040476,-480.0,0.00013698,2]
[384296708,1757325040486,-480.0,0.00013698,2]
[384296709,1757325040497,-480.0,0.00013698,2]
[384296710,1757325040507,-480.0,0.00013698,2]
[384296711,1757325040518,-480.0,0.00013698,2]
[384296712,1757325040528,-480.0,0.00013698,2]
[384296713,1757325040538,-482.46448473,0.00013698,2]
[384296714,1757325040548,-480.0,0.00013698,2]
[384296715,1757325040559,-480.0,0.00013698,2]
[384296716,1757325040569,-480.0,0.00013698,2]
[384296717,1757325040579,-480.0,0.00013698,2]
[384296718,1757325040589,-480.0,0.00013698,2]
[384296719,1757325040599,-486.84819314,0.00013698,2]
[384296720,1757325040609,-480.0,0.00013698,2]
[384296721,1757325040619,-480.0,0.00013698,2]
[384296722,1757325040629,-480.0,0.00013698,2]
[384296723,1757325040639,-480.0,0.00013698,2]
[384296724,1757325040649,-480.0,0.00013698,2]
[384296725,1757325040659,-480.0,0.00013698,2]
[384296726,1757325040672,-480.0,0.00013698,2]
[384296727,1757325040683,-480.0,0.00013698,2]
[384296728,1757325040692,-1000.0,0.00013698,2]
[384296729,1757325040702,-480.0,0.00013698,2]
[384296730,1757325040712,-480.0,0.00013698,2]
[384296731,1757325040722,-480.0,0.00013698,2]
[384296732,1757325040732,-480.0,0.00013698,2]
[384296733,1757325040742,-480.0,0.00013698,2]
[384296734,1757325040752,-233.30411105,0.00013698,2]
[384296735,1757325040762,-480.0,0.00013698,2]
[384296736,1757325040771,-480.0,0.00013698,2]
[384296737,1757325040782,-480.0,0.00013698,2]
[384296738,1757325040791,-480.0,0.00013698,2]
[384296739,1757325040801,-317.00371844,0.00013698,2]
[384296740,1757325040810,-480.0,0.00013698,2]
[384296741,1757325040820,-482.1010357,0.00013698,2]
[384296742,1757325040829,-480.0,0.00013698,2]
[384296743,1757325040839,-480.0,0.00013698,2]
[384296744,1757325040849,-480.0,0.00013698,2]
[384296745,1757325040859,-500.0,0.00013698,2]
[384296746,1757325040868,-480.0,0.00013698,2]
[384296747,1757325040878,-500.0,0.00013698,2]
[384296748,1757325040887,-500.0,0.00013698,2]
[384296749,1757325040897,-500.0,0.00013698,2]
[384296750,1757325040907,-500.0,0.00013698,2]
[384296751,1757325040917,-500.0,0.00013698,2]
[384296752,1757325040926,-500.0,0.00013698,2]
[384296753,1757325040937,-500.0,0.00013698,2]
[384296754,1757325040947,-500.0,0.00013698,2]
[384296755,1757325040956,-500.0,0.00013698,2]
[384296756,1757325040965,-500.0,0.00013698,2]
[384296757,1757325040975,-480.0,0.00013698,2]
[384296758,1757325040984,-500.0,0.00013698,2]
[384296759,1757325040999,-500.0,0.00013698,2]
[384296760,1757325041010,-197.06,0.00013698,2]
[384296761,1757325041019,-480.0,0.00013698,2]
[384296762,1757325041030,-480.0,0.00013698,2]
[384296763,1757325041040,-480.0,0.00013698,2]
[384296764,1757325041049,-483.13414118,0.00013698,2]
[384296765,1757325041059,-482.54867448,0.00013698,2]
[384296766,1757325041069,-481.77424425,0.00013698,2]
[384296767,1757325041079,-480.0,0.00013698,2]
[384296768,1757325041088,-480.0,0.00013698,2]
[384296769,1757325041099,-480.0,0.00013698,2]
[384296770,1757325041108,-480.0,0.00013698,2]
[384296771,1757325041118,-480.0,0.00013698,2]
[384296772,1757325041128,-480.0,0.00013698,2]
[384296773,1757325041137,-482.17095595,0.00013698,2]
[384296774,1757325041147,-482.54152169,0.00013698,2]
[384296775,1757325041157,-482.53797955,0.00013698,2]
[384296777,1757325041167,-483.08959952,0.00013698,2]
[384296779,1757325041177,-484.12244598,0.00013698,2]
[384296781,1757325041187,-480.0,0.00013698,2]
[384296783,1757325041196,-480.0,0.00013698,2]
[384296785,1757325041206,-480.0,0.00013698,2]
[384296787,1757325041215,-481.72431331,0.00013698,2]
[384296789,1757325041225,-483.1106378,0.00013698,2]
[384296791,1757325041235,-480.0,0.00013698,2]
[384296793,1757325041245,-480.0,0.00013698,2]
[384296795,1757325041255,-484.27197829,0.00013698,2]
[384296797,1757325041265,-485.24885422,0.00013698,2]
[384296799,1757325041275,-480.0,0.00013698,2]
[384296801,1757325041285,-480.0,0.00013698,2]
[384296803,1757325041294,-480.0,0.00013698,2]
[384296805,1757325041303,-480.0,0.00013698,2]
[384296807,1757325041312,-481.40179665,0.00013698,2]
[384296809,1757325041322,-480.0,0.00013698,2]
[384296811,1757325041331,-593.82,0.00013698,2]
[384296813,1757325041340,-480.0,0.00013698,2]
[384296815,1757325041350,-480.0,0.00013698,2]
[384296817,1757325041359,-480.0,0.00013698,2]
[384296819,1757325041371,-480.0,0.00013698,2]
[384296821,1757325041380,-480.0,0.00013698,2]
[384296823,1757325041390,-480.0,0.00013698,2]
[384296825,1757325041399,-480.0,0.00013698,2]
[384296827,1757325041408,-480.0,0.00013698,2]
[384296829,1757325041417,-480.0,0.00013698,2]
[384296831,1757325041427,-480.0,0.00013698,2]
[384296833,1757325041436,-480.0,0.00013698,2]
[384296834,1757325041446,-480.0,0.00013698,2]
[384296835,1757325041455,-480.0,0.00013698,2]
[384296836,1757325041465,-480.0,0.00013698,2]
[384296837,1757325041475,-480.0,0.00013698,2]
[384296838,1757325041484,-576.1269201,0.00013698,2]
[384296839,1757325041494,-481.70986549,0.00013698,2]
[384296840,1757325041505,-480.0,0.00013698,2]
[384296841,1757325041519,-482.63586061,0.00013698,2]
[384296842,1757325041530,-480.0,0.00013698,2]
[384296843,1757325041541,-481.04148395,0.00013698,2]
[384296844,1757325041553,-480.0,0.00013698,2]
[384296845,1757325041563,-480.0,0.00013698,2]
[384296846,1757325041575,-276.00981847,0.00013698,2]
[384296847,1757325041589,-480.0,0.00013698,2]
[384296848,1757325041600,-480.0,0.00013698,2]
[384296849,1757325041611,-480.0,0.00013698,2]
[384296850,1757325041621,-549.62856115,0.00013698,2]
[384296851,1757325041631,-500.0,0.00013698,2]
[384296852,1757325041642,-480.0,0.00013698,2]
[384296853,1757325041652,-480.0,0.00013698,2]
[384296855,1757325041662,-480.0,0.00013698,2]
[384296857,1757325041675,-480.0,0.00013698,2]
[384296859,1757325041685,-480.0,0.00013698,2]
[384296861,1757325041695,-480.0,0.00013698,2]
[384296864,1757325041705,-480.0,0.00013698,2]
[384296865,1757325041714,-480.0,0.00013698,2]
[384296867,1757325041724,-480.0,0.00013698,2]
[384296869,1757325041735,-480.0,0.00013698,2]
[384296872,1757325041745,-483.23179107,0.00013698,2]
[384296873,1757325041754,-480.0,0.00013698,2]
[384296875,1757325041764,-482.67254381,0.00013698,2]
[384296877,1757325041774,-484.42089267,0.00013698,2]
[384296880,1757325041784,-480.0,0.00013698,2]
[384296881,1757325041794,-480.0,0.00013698,2]
[384296884,1757325041804,-480.0,0.00013698,2]
[384296885,1757325041814,-480.0,0.00013698,2]
[384296887,1757325041824,-480.0,0.00013698,2]
[384296890,1757325041834,-482.18888764,0.00013698,2]
[384296891,1757325041844,-480.0,0.00013698,2]
[384296894,1757325041854,-480.0,0.00013698,2]
[384296896,1757325041864,-480.0,0.00013698,2]
[384296898,1757325041875,-480.0,0.00013698,2]
[384296900,1757325041884,-480.0,0.00013698,2]
[384296902,1757325041894,-480.0,0.00013698,2]
[384296903,1757325041904,-480.0,0.00013698,2]
[384296905,1757325041914,-480.0,0.00013698,2]
[384296907,1757325041924,-480.0,0.00013698,2]
[384296910,1757325041933,-480.56681057,0.00013698,2]
[384296911,1757325041943,-480.0,0.00013698,2]
[384296913,1757325041953,-480.0,0.00013698,2]
[384296916,1757325041963,-480.0,0.00013698,2]
[384296917,1757325041972,-480.0,0.00013698,2]
[384296919,1757325041982,-480.0,0.00013698,2]
[384296922,1757325041992,-482.79201266,0.00013698,2]
[384296924,1757325042002,-480.0,0.00013698,2]
[384296926,1757325042013,-480.0,0.00013698,2]
[384296928,1757325042024,-480.0,0.00013698,2]
[384296930,1757325042034,-480.0,0.00013698,2]
[384296932,1757325042043,-480.0,0.00013698,2]
[384296934,1757325042054,-480.0,0.00013698,2]
[384296936,1757325042064,-480.0,0.00013698,2]
[384296938,1757325042074,-480.0,0.00013698,2]
[384296940,1757325042084,-480.0,0.00013698,2]
[384296942,1757325042095,-480.0,0.00013698,2]
[384296944,1757325042105,-480.9462822,0.00013698,2]
[384296946,1757325042115,-480.0,0.00013698,2]
[384296948,1757325042125,-480.0,0.00013698,2]
[384296950,1757325042135,-480.0,0.00013698,2]
[384296952,1757325042146,-480.0,0.00013698,2]
[384296954,1757325042155,-480.0,0.00013698,2]
[384296956,1757325042165,-482.49203632,0.00013698,2]
[384296958,1757325042174,-486.61781545,0.00013698,2]
[384296959,1757325042184,-480.0,0.00013698,2]
[384296961,1757325042193,-484.89244816,0.00013698,2]
[384296963,1757325042203,-480.0,0.00013698,2]
[384296965,1757325042212,-480.0,0.00013698,2]
[384296967,1757325042222,-480.0,0.00013698,2]
[384296969,1757325042231,-480.0,0.00013698,2]
[384296971,1757325042242,-483.09841201,0.00013698,2]
[384296974,1757325042252,-480.32021663,0.00013698,2]
[384296976,1757325042263,-480.0,0.00013698,2]
[384296978,1757325042273,-480.96590175,0.00013698,2]
[384296980,1757325042282,-480.0,0.00013698,2]
[384296982,1757325042292,-480.0,0.00013698,2]
[384296984,1757325042302,-480.0,0.00013698,2]
[384296986,1757325042311,-480.0,0.00013698,2]
[384296988,1757325042321,-480.0,0.00013698,2]
[384296990,1757325042332,-482.59797707,0.00013698,2]
[384296992,1757325042342,-480.0,0.00013698,2]
[384296994,1757325042351,-480.0,0.00013698,2]
[384296996,1757325042361,-480.0,0.00013698,2]
[384296998,1757325042371,-480.0,0.00013698,2]
[384297000,1757325042380,-480.0,0.00013698,2]
[384297002,1757325042391,-474.55573627,0.00013698,2]
[384297004,1757325042400,-480.0,0.00013698,2]
[384297006,1757325042410,-480.0,0.00013698,2]
[384297008,1757325042419,-480.0,0.00013698,2]
[384297010,1757325042429,-480.0,0.00013698,2]
[384297012,1757325042438,-480.0,0.00013698,2]
[384297013,1757325042448,-484.46088951,0.00013698,2]
[384297016,1757325042458,-480.0,0.00013698,2]
[384297018,1757325042469,-480.0,0.00013698,2]
[384297020,1757325042478,-372.43277086,0.00013698,2]
[384297022,1757325042488,-482.94152984,0.00013698,2]
[384297024,1757325042497,-483.78559756,0.00013698,2]
[384297026,1757325042507,-480.0,0.00013698,2]
[384297028,1757325042517,-476.35181474,0.00013698,2]
[384297030,1757325042527,-480.0,0.00013698,2]
[384297032,1757325042537,-480.0,0.00013698,2]
[384297034,1757325042547,-480.0,0.00013698,2]
[384297049,1757325042688,-481.93523303,0.00013698,2]
[384297052,1757325042699,-480.0,0.00013698,2]
[384297054,1757325042709,-481.08845104,0.00013698,2]
[384297056,1757325042719,-480.0,0.00013698,2]
[384297058,1757325042729,-482.30647875,0.00013698,2]
[384297060,1757325042739,-484.36458362,0.00013698,2]
[384297062,1757325042749,-480.86930627,0.00013698,2]
[384297064,1757325042759,-483.77522546,0.00013698,2]
[384297066,1757325042768,-483.15339399,0.00013698,2]
[384297068,1757325042778,-480.0,0.00013698,2]
[384297070,1757325042788,-481.44544933,0.00013698,2]
[384297072,1757325042797,-483.60409814,0.00013698,2]
[384297074,1757325042808,-480.0,0.00013698,2]
[384297076,1757325042819,-480.0,0.00013698,2]
[384297078,1757325042830,-481.49000702,0.00013698,2]
[384297080,1757325042841,-481.40461927,0.00013698,2]
[384297082,1757325042852,-480.0,0.00013698,2]
[384297084,1757325042862,-481.5392304,0.00013698,2]
[384297086,1757325042872,-480.0,0.00013698,2]
[384297088,1757325042882,-482.42793387,0.00013698,2]
[384297090,1757325042893,-480.0,0.00013698,2]
[384297092,1757325042903,-481.79391283,0.00013698,2]
[384297094,1757325042913,-480.0,0.00013698,2]
[384297096,1757325042923,-480.0,0.00013698,2]
[384297098,1757325042932,-480.0,0.00013698,2]
[384297100,1757325042942,-483.40730415,0.00013698,2]
[384297102,1757325042952,-480.0,0.00013698,2]
[384297104,1757325042963,-480.0,0.00013698,2]
[384297106,1757325042973,-480.0,0.00013698,2]
[384297108,1757325042983,-480.0,0.00013698,2]
[384297110,1757325042993,-480.0,0.00013698,2]
[384297112,1757325043003,-480.0,0.00013698,2]
[384297114,1757325043013,-480.0,0.00013698,2]
[384297117,1757325043023,-483.17836473,0.00013698,2]